Workbook

Sheet část 1.
A1: Příloha č. 2 zadávací dokumentace
A3: Cenová nabídka - modelový příklad
A5: VZ "Biochemické a imunochemické analytické systémy pro ONN a.s."
A7: Hodnotící kritérium č. 1 - Výše nabídkové ceny za povinné reportované testy v CZK bez DPH za 8 let - 65% váha kritéria
A9: Označení reportovaného testu | C9: CELKEM počet reportovaných testů za všechny lokality/ 8 let | D9: Cena za 1 reportovaný test v (CZK) bez DPH | E9: CENA CELKEM za 8 let (CZK) bez DPH
A10: a1 | B10: Urea | C10: 1090544
A11: a2 | B11: Urea v moči | C11: 4496
A12: a3 | B12: Kreatinin | C12: 1211400
A13: a4 | B13: Kreatinin v moči | C13: 92232
A14: a5 | B14: Cystatin C | C14: 4216
A15: a6 | B15: Kyselina močová | C15: 511344
A16: a7 | B16: Kyselina močová v moči | C16: 1432
A17: a8 | B17: Na+ (Sodík v séru, likvoru a punktátu) | C17: 1137864
A18: a9 | B18: Na+ (Sodík v moči) | C18: 5328
A19: a10 | B19: K+ (Draslík v séru, likvoru a punktátu) | C19: 1152408
A20: a11 | B20: K+ (Draslík v moči) | C20: 5288
A21: a12 | B21: Cl- (Chloridy v séru, likvoru a punktátu) | C21: 1033688
A22: a13 | B22: Cl- (Chloridy v moči) | C22: 4968
A23: a14 | B23: Vápník | C23: 176896
A24: a15 | B24: Vápník v moči | C24: 21352
A25: a16 | B25: Fosfor | C25: 111296
A26: a17 | B26: Fosfor v moči | C26: 9328
A27: a18 | B27: Hořčík | C27: 175440
A28: a19 | B28: Hořčík v moči | C28: 3328
A29: a20 | B29: Železo celkové | C29: 75712
A30: a21 | B30: Vazebná kapacita železa | C30: 39224
A31: a22 | B31: Vitamin B12 | C31: 42616
A32: a23 | B32: Kyselina listová (foláty) | C32: 36280
A33: a24 | B33: Homocystein | C33: 6064
A34: a25 | B34: Bilirubin celkový | C34: 776192
A35: a26 | B35: Bilirubin konjugovaný | C35: 190648
A36: a27 | B36: Bilirubin novorozenecký | C36: 14000
A37: a28 | B37: ALT | C37: 997336
A38: a29 | B38: AST | C38: 947440
A39: a30 | B39: Gamaglutamyltransferáza (GGT) | C39: 586048
A40: a31 | B40: Fosfatáza alkalická (ALP) | C40: 453208
A41: a32 | B41: Laktátdehydrogenáza (LD) v séru, likvoru a punktátu | C41: 62792
A42: a33 | B42: Kreatinkináza (CK) | C42: 174408
A43: a34 | B43: CK-MB mass | C43: 1008
A44: a35 | B44: Myoglobin | C44: 27960
A45: a36 | B45: hs Troponin T nebo I | C45: 70360
A46: a37 | B46: Natriuretické peptidy (NT-proBNP) | C46: 40016
A47: a38 | B47: Amyláza v séru a punktátu | C47: 101768
A48: a39 | B48: Amyláza v moči | C48: 4968
A49: a40 | B49: Pankreatická amyláza v séru | C49: 22680
A50: a41 | B50: Pankreatická amyláza v moči | C50: 416
A51: a42 | B51: Lipáza v séru a punktátu | C51: 63320
A52: a43 | B52: Cholinesterasa | C52: 1720
A53: a44 | B53: Cholesterol celkový v séru a punktátu | C53: 558176
A54: a45 | B54: Cholesterol HDL | C54: 461184
A55: a46 | B55: Cholesterol LDL | C55: 470280
A56: a47 | B56: Triacylglyceroly v séru a punktátu | C56: 517872
A57: a48 | B57: Apolipoprotein A1 | C57: 6608
A58: a49 | B58: Apolipoprotein B | C58: 5984
A59: a50 | B59: Lipoprotein (a) | C59: 584
A60: a51 | B60: Bílkovina celková v séru a punktátu | C60: 271456
A61: a52 | B61: Bílkovina celková v moči | C61: 47248
A62: a53 | B62: Bílkovina celková v likvoru | C62: 3568
A63: a54 | B63: Prealbumin | C63: 5936
A64: a55 | B64: Albumin v séru a puktátu | C64: 120840
A65: a56 | B65: Albumin v moči | C65: 65008
A66: a57 | B66: Albumin v likvoru | C66: 264
A67: a58 | B67: Haptoglobin | C67: 1128
A68: a59 | B68: Transferin | C68: 34944
A69: a60 | B69: Solubilní transferinový receptor | C69: 5912
A70: a61 | B70: C3 složka komplementu | C70: 912
A71: a62 | B71: C4 složka komplementu | C71: 1024
A72: a63 | B72: Beta-2-mikroglobulin | C72: 5728
A73: a64 | B73: IgG v séru | C73: 23912
A74: a65 | B74: IgA v séru | C74: 21392
A75: a66 | B75: IgM | C75: 20784
A76: a67 | B76: IgE | C76: 13528
A77: a68 | B77: C-reaktivní protein | C77: 754928
A78: a69 | B78: CIK (cirkulující imunokomplexy) | C78: 1176
A79: a70 | B79: Prokalcitonin | C79: 26080
A80: a71 | B80: Interleukin 6 | C80: 1440
A81: a72 | B81: Revmatoidní faktor v séru a punktátu | C81: 27416
A82: a73 | B82: Antistreptolyzin O (ASLO) v séru a punktátu | C82: 21720
A83: a74 | B83: Glukóza v séru, plazmě, likvoru a punktátu | C83: 1749496
A84: a75 | B84: Glukóza v moči | C84: 71784
A85: a76 | B85: Glukóza - hemolyzát | C85: 200640
A86: a77 | B86: Kyselina valproová | C86: 672
A87: a78 | B87: Carbamazepin | C87: 184
A88: a79 | B88: Digoxin | C88: 12872
A89: a80 | B89: Teofylin | C89: 4048
A90: a81 | B90: Gentamycin | C90: 1680
A91: a82 | B91: Vankomycin | C91: 816
A92: a83 | B92: Etanol | C92: 11224
A93: a84 | B93: Tyreotropin (TSH) | C93: 468992
A94: a85 | B94: Trijodtyronin celkový (TT3) | C94: 1032
A95: a86 | B95: Trijodtyronin volný (FT3) | C95: 37000
A96: a87 | B96: Tyroxin volný (FT4) | C96: 199648
A97: a88 | B97: Thyreoglobulin | C97: 2216
A98: a89 | B98: Autoprotilátky proti mikrosomálnímu antigenu (Anti-TPO) | C98: 15416
A99: a90 | B99: Autoprotilátky proti tyreoglobulinu (Anti-TG) | C99: 12464
A100: a91 | B100: Choriogonadotropin (HCG) | C100: 10552
A101: a92 | B101: Folitropin (FSH) | C101: 5128
A102: a93 | B102: Lutropin (LH) | C102: 4560
A103: a94 | B103: Prolaktin | C103: 5648
A104: a95 | B104: Estradiol | C104: 3200
A105: a96 | B105: Progesteron | C105: 3032
A106: a97 | B106: Testosteron celkový | C106: 5472
A107: a98 | B107: Sex hormone binding globulin (SHBG) | C107: 1488
A108: a99 | B108: Kortizol v séru | C108: 5464
A109: a100 | B109: Kortizol v moči | C109: 504
A110: a101 | B110: Spojovací peptid proinzulinu (C-peptid) | C110: 7168
A111: a102 | B111: Prostatický specifický antigen (PSA) | C111: 126872
A112: a103 | B112: Prostatický specifický antigen (PSA) - volný | C112: 34168
A113: a104 | B113: Alfa-1-fetoprotein (AFP) | C113: 9008
A114: a105 | B114: Karcinoembryonalni antigen (CEA) v séru a punktátu | C114: 34640
A115: a106 | B115: Carbohydrate antigen 15-3 | C115: 11696
A116: a107 | B116: Carbohydrate antigen 19-9 | C116: 25456
A117: a108 | B117: Carbohydrate antigen 125 | C117: 9216
A118: a109 | B118: Feritin | C118: 47800
A119: a110 | B119: Parathormon intaktní | C119: 34176
A120: a111 | B120: 25-hydroxyvitamin D | C120: 37376
A121: a112 | B121: Laktát v plazmě | C121: 18888
A122: a113 | B122: Laktát v likvoru, puktátu | C122: 3080
A123: a114 | B123: Amoniak | C123: 624
A124: a115 | B124: Hemoglobin ve stolici | C124: 1240
A125: a116 | B125: Sérové indexy | C125: 1258976
A126: a117 | B126: Anti HAV IgG+IgM | C126: 2704
A127: a118 | B127: Anti HAV IgM | C127: 1072
A128: a119 | B128: HBsAg (Australský antigen) | C128: 5544
A129: a120 | B129: Anti HBs | C129: 4040
A130: a121 | B130: Anti HBc IgG +IgM | C130: 3536
A131: a122 | B131: Anti HBc IgM | C131: 304
A132: a123 | B132: Anti HBc IgM | C132: 304
A133: a124 | B133: HCV (Ag/Ab) | C133: 4088
A134: a125 | B134: HIV-1 (protilátky) | C134: 3560
A135: a126 | B135: Ab/CMV IgG kvantit. | C135: 1720
A136: a127 | B136: Ab/CMV IgM | C136: 1720
A137: a128 | B137: Ab/Toxoplazma IgG kvant. | C137: 688
A138: a129 | B138: Ab/Toxopl.IgM | C138: 688
A139: a130 | B139: Ab/SARS-COV-2-IgG | C139: 5600
B140: CELKEM povinné testy za všechny lokality v CZK bez DPH/ 8 let* | E140: =MIN(H140,K140,N140) -> 0
B141: CELKEM výše DPH v CZK za 8 let | E141: 0
B142: CELKEM za povinné testy za všechny lokality v CZK s DPH/ 8 let | E142: 0
A144: Poznámka: Tento dokument bude přílohou č. 1 Rámcové kupní smlouvy
A145: * Celková cena za povinné testy za všechny lokality v CZK za 8 let, nesmí překročit předpokládanou hodnotu veřejné zakázky, tj. 220 000 000,- Kč bez DPH v souladu ustanovením článku 7 Výzvy k předložení nabídek a zadávací dokumentaci této veřejné zakázky.
A147: V…...................dne…............
D148: ….....................................................
C149: Podpis osoby oprávněné jednat jménem účastníka

Sheet část 2.
A1: Příloha č. 2 zadávací dokumentace
A3: Cenová nabídka - modelový příklad
A5: VZ "Biochemické a imunochemické analytické systémy pro ONN a.s."
A7: Hodnotící kritérium č. 2 - Výše nabídkové ceny za nepovinné reportované testy v CZK bez DPH za 8 let - 10% váha kritéria
A8: Nepovinné reportované testy | C8: CELKEM počet vzorků za všechny lokality/ 8 let | D8: Substituční cena za 1 reportovaný test v kč bez DPH * | E8: Cena za 1 reportovaný test v (CZK) bez DPH | F8: CENA CELKEM za 8 let (CZK) bez DPH | G8: Ano - 1 bod/Ne -0 bodů
A9: b1 | B9: ELF score (Enhanced Liver Fibrosis) | C9: 1032 | F9: =C9*D9 -> 0
A10: b2 | B10: Eozinofilní kationový protein (ECP) | C10: 2976 | F10: =C10*D10 -> 0
A11: b3 | B11: Anti-CCP | C11: 2600 | F11: 0
A12: b4 | B12: TSI (TSH receptor Stimulating Imunoglobulins) | C12: 2912 | F12: 0
A13: b5 | B13: Preeklampsie | C13: 1184 | F13: 0
A14: b6 | B14: HE4 (Human Epididymal protein 4) | C14: 840 | F14: 0
A15: b7 | B15: Carbohydrate antigen 125* | C15: 840 | F15: 0
A16: b8 | B16: ROMA score | C16: 816 | F16: 0
A17: b9 | B17: SCC antigen | C17: 168 | F17: 0
A18: b10 | B18: Cytokeratin fragment 21-1 (CYFRA) v séru a punktátu | C18: 3040 | F18: 0
A19: b11 | B19: Carbohydrate antigen 72-4 | C19: 9216 | F19: 0
A20: b12 | B20: proPSA | C20: 624 | F20: 0
A21: b13 | B21: NSE | C21: 2784 | F21: 0
A22: b14 | B22: ALP-kostní (osteáza) | C22: 184 | F22: 0
A23: b15 | B23: Osteokalcin | C23: 16504 | F23: 0
A24: b16 | B24: Beta-CrossLaps | C24: 14832 | F24: 0
A25: b17 | B25: Prokolagen typ I (Propeptid prokolagenu I) | C25: 4864 | F25: 0
A26: b18 | B26: Adrenokortikotropin (ACTH) | C26: 1176 | F26: 0
A27: b19 | B27: Ab/Treponema screen | C27: 6880 | F27: 0
A28: b20 | B28: CMV avidita | C28: 80 | F28: 0
A29: b21 | B29: Specifické IgE proti: trávy I (směs) | C29: 832 | F29: 0
A30: b22 | B30: Specifické IgE proti: směs roztoči | C30: 1896 | F30: 0
A31: b23 | B31: Specifické IgE proti: směs plísně | C31: 272 | F31: 0
A32: b24 | B32: Specifické IgE proti: směs stromy 9 | C32: 864 | F32: 0
A33: b25 | B33: Specifické IgE proti: kočka - srst | C33: 408 | F33: 0
A34: b26 | B34: Specifické IgE proti: pes - epitelie | C34: 344 | F34: 0
A35: b27 | B35: Specifické IgE proti: vaječný bílek | C35: 488 | F35: 0
A36: b28 | B36: Specifické IgE proti: mléko kravské | C36: 1096 | F36: 0
A37: b29 | B37: Specifické IgE proti: mouka pšeničná | C37: 688 | F37: 0
A38: b30 | B38: Specifické IgE proti: vaječný žloutek | C38: 312 | F38: 0
A39: b31 | B39: Specifické IgE proti: gluten - lepek | C39: 640 | F39: 0
A40: b32 | B40: Specifické IgE proti: včela medonosná | C40: 240 | F40: 0
A41: b33 | B41: Specifické IgE proti: vosa obecná | C41: 272 | F41: 0
A42: b34 | B42: Specifické IgE proti: Aspergillus fumigatus | C42: 136 | F42: 0
A43: b35 | B43: Specifické IgE proti: Alternaria tenui | C43: 272 | F43: 0
A44: b36 | B44: Specifické IgE proti: pyl pelyněk černobýl (Artemisia vulgaris) | C44: 96 | F44: =C44*D44 -> 0
C45: CELKEM za nepovinné testy za všechny lokality v CZK bez DPH/ 8 let | G45: =MIN(I45,L45,O45) -> 0
C46: CELKEM výše DPH v CZK za 8 let | G46: 0
C47: CELKEM za nepovinné testy za všechny lokality v CZK s DPH/ 8 let | G47: 0
A49: * Carbohydrate antigen 125 - tento test se používá v rámci gynekolického vyšetření v kombinaci s testem HE4 (Human Epididymal protein 4). Zadavatel požaduje aby tyto dva reporotvané testy byly provedeny na shodném analyzátoru k získání validních výsledků.
A50: Substituční cena reportovaného testu* - v případě, že účastník nemá požadovaný reportovaný test ve svém portfoliu, vyplní NE. Zadavatel hodnoty substituční ceny reportovaného testu doplní před hodnocením.
A51: Za každý účastníkem nabídnutý nepovinný reportovaný test (vyplní ANO), zadavatel v rámci hodnocení přiřadí účastníkovi jeden (1) bod. Celkem je možné v rámci dílčího kritéria č. 2 získat celkem 36 bodů v případě, že budou v rámci nabídky účastníka vyplněny/nabídnuty položky č. b1 až b36.
A52: Poznámka: Tento dokument bude přílohou č. 1 Rámcové kupní smlouvy
A54: V…...................dne…............
F55: ….....................................................
F56: Podpis osoby oprávněné jednat jménem účastníka

Sheet Specifikace reportovaných testů
A1: Příloha č. 2 zadávací dokumentace
A2: Účastník je povinen v Seznamu metod včetně ocenění vyplnit příslušné slupce (označeno žlutou barvou).
A3: Povinné reportované testy
A4: Označení reportovaného testu | B4: Pracoviště Náchod | C4: Q report. testů | D4: Statim | E4: Pracoviště Rychnov n/K | F4: Q report. testů | G4: Statim | H4: Pracoviště Broumov | I4: Q report. testů | J4: Statim | K4: Pracoviště Jaroměř | L4: Q report. testů | M4: Statim | N4: Pracoviště Opočno | O4: Q report. testů | P4: Statim | Q4: CELKEM počet vzorků za všechny lokality/ 1 rok | R4: Celkem počet reportovaných testů za všechny lokality/ 8 let | S4: délka trvání vyšetření Statim | T4: možné velikosti balení/počet testů | U4: pipetovaný objem vzorku (ul) | V4: stabilita reagencie na palubě analyzátoru (dny) | W4: doporučený interval kalibrace, stabilita kalibrace (dny) | X4: reagencie připravené k použití (ANO/NE) | Y4: kalibrační materál připravený k použití (ANO/NE) | Z4: kontrolní materiál připravený k použití (ANO/NE) | AA4: reagencie označené RFID (ANO/NE) | AB4: kalibrační materál označený RFID (ANO/NE) | AC4: kontrolní materiál označený RFID (ANO/NE)
A5: Urea | B5: ANO | C5: 61129 | D5: ANO | E5: ANO | F5: 37971 | G5: ANO | H5: ANO | I5: 22668 | J5: ANO | K5: ANO | L5: 8636 | M5: ANO | N5: ANO | O5: 5914 | P5: ANO | Q5: =C5+F5+I5+L5+O5 -> 136318 | R5: =Q5*8 -> 1090544
A6: Urea v moči | B6: ANO | C6: 47 | D6: ANO | E6: ANO | F6: 440 | G6: ANO | H6: ANO | I6: 9 | J6: ANO | M6: ANO | N6: ANO | O6: 66 | P6: ANO | Q6: =C6+F6+I6+L6+O6 -> 562 | R6: =Q6*8 -> 4496
A7: Kreatinin | B7: ANO | C7: 66180 | D7: ANO | E7: ANO | F7: 42724 | G7: ANO | H7: ANO | I7: 24003 | J7: ANO | K7: ANO | L7: 9974 | M7: ANO | N7: ANO | O7: 8544 | P7: ANO | Q7: 151425 | R7: 1211400
A8: Kreatinin v moči | B8: ANO | C8: 5385 | D8: ANO | E8: ANO | F8: 2526 | G8: ANO | H8: ANO | I8: 325 | J8: ANO | K8: ANO | L8: 37 | M8: ANO | N8: ANO | O8: 3256 | P8: ANO | Q8: 11529 | R8: 92232
A9: Cystatin C | E9: ANO | F9: 527 | Q9: 527 | R9: 4216
A10: Kyselina močová | B10: ANO | C10: 23450 | D10: ANO | E10: ANO | F10: 17271 | G10: ANO | H10: ANO | I10: 10695 | J10: ANO | K10: ANO | L10: 5994 | M10: ANO | N10: ANO | O10: 6508 | P10: ANO | Q10: 63918 | R10: 511344
A11: Kyselina močová v moči | B11: ANO | C11: 89 | D11: ANO | E11: ANO | G11: ANO | H11: ANO | I11: 26 | J11: ANO | N11: ANO | O11: 64 | P11: ANO | Q11: 179 | R11: 1432
A12: Na+ (Sodík v séru, likvoru a punktátu) | B12: ANO | C12: 62799 | D12: ANO | E12: ANO | F12: 39163 | G12: ANO | H12: ANO | I12: 25076 | J12: ANO | K12: ANO | L12: 9717 | M12: ANO | N12: ANO | O12: 5478 | P12: ANO | Q12: 142233 | R12: 1137864
A13: Na+ (Sodík v moči) | B13: ANO | C13: 75 | D13: ANO | E13: ANO | F13: 447 | G13: ANO | H13: ANO | I13: 63 | J13: ANO | K13: ANO | L13: 11 | M13: ANO | N13: ANO | O13: 70 | P13: ANO | Q13: 666 | R13: 5328
A14: K+ (Draslík v séru, likvoru a punktátu) | B14: ANO | C14: 62799 | D14: ANO | E14: ANO | F14: 40911 | G14: ANO | H14: ANO | I14: 25076 | J14: ANO | K14: ANO | L14: 9715 | M14: ANO | N14: ANO | O14: 5550 | P14: ANO | Q14: 144051 | R14: 1152408
A15: K+ (Draslík v moči) | B15: ANO | C15: 75 | D15: ANO | E15: ANO | F15: 442 | G15: ANO | H15: ANO | I15: 63 | J15: ANO | K15: ANO | L15: 11 | M15: ANO | N15: ANO | O15: 70 | P15: ANO | Q15: 661 | R15: 5288
A16: Cl- (Chloridy v séru, likvoru a punktátu) | B16: ANO | C16: 63124 | D16: ANO | E16: ANO | F16: 25990 | G16: ANO | H16: ANO | I16: 25073 | J16: ANO | K16: ANO | L16: 9715 | M16: ANO | N16: ANO | O16: 5309 | P16: ANO | Q16: 129211 | R16: 1033688
A17: Cl- (Chloridy v moči) | B17: ANO | C17: 45 | D17: ANO | E17: ANO | F17: 433 | G17: ANO | H17: ANO | I17: 63 | J17: ANO | K17: ANO | L17: 11 | M17: ANO | O17: 69 | P17: ANO | Q17: 621 | R17: 4968
A18: Vápník | B18: ANO | C18: 12491 | D18: ANO | E18: ANO | F18: 4718 | G18: ANO | H18: ANO | I18: 2330 | J18: ANO | K18: ANO | L18: 1577 | M18: ANO | N18: ANO | O18: 996 | P18: ANO | Q18: 22112 | R18: 176896
A19: Vápník v moči | B19: ANO | C19: 1621 | D19: ANO | E19: ANO | F19: 506 | G19: ANO | H19: ANO | I19: 386 | J19: ANO | K19: ANO | L19: 68 | M19: ANO | N19: ANO | O19: 88 | P19: ANO | Q19: 2669 | R19: 21352
A20: Fosfor | B20: ANO | C20: 8041 | D20: ANO | E20: ANO | F20: 3362 | G20: ANO | H20: ANO | I20: 1787 | J20: ANO | K20: ANO | L20: 407 | M20: ANO | N20: ANO | O20: 315 | P20: ANO | Q20: 13912 | R20: 111296
A21: Fosfor v moči | B21: ANO | C21: 211 | D21: ANO | F21: 442 | G21: ANO | H21: ANO | I21: 382 | J21: ANO | K21: ANO | L21: 53 | M21: ANO | N21: ANO | O21: 78 | P21: ANO | Q21: 1166 | R21: 9328
A22: Hořčík | B22: ANO | C22: 5655 | D22: ANO | E22: ANO | F22: 3884 | G22: ANO | H22: ANO | I22: 10972 | J22: ANO | K22: ANO | L22: 1203 | M22: ANO | N22: ANO | O22: 216 | P22: ANO | Q22: 21930 | R22: 175440
A23: Hořčík v moči | B23: ANO | C23: 91 | D23: ANO | F23: 233 | G23: ANO | H23: ANO | I23: 92 | J23: ANO | Q23: 416 | R23: 3328
A24: Železo celkové | B24: ANO | C24: 4094 | E24: ANO | F24: 2440 | H24: ANO | I24: 1123 | J24: ANO | K24: ANO | L24: 1364 | M24: ANO | N24: ANO | O24: 443 | P24: ANO | Q24: 9464 | R24: 75712
A25: Vazebná kapacita železa | B25: ANO | C25: 2378 | E25: ANO | F25: 1550 | H25: ANO | I25: 511 | K25: ANO | L25: 311 | M25: ANO | N25: ANO | O25: 153 | P25: ANO | Q25: 4903 | R25: 39224
A26: Vitamin B12 | B26: ANO | C26: 3840 | E26: ANO | F26: 1487 | Q26: 5327 | R26: 42616
A27: Kyselina listová (foláty) | B27: ANO | C27: 3342 | E27: ANO | F27: 1193 | Q27: 4535 | R27: 36280
A28: Homocystein | B28: ANO | C28: 373 | E28: ANO | F28: 385 | G28: ANO | Q28: 758 | R28: 6064
A29: Bilirubin celkový | B29: ANO | C29: 43273 | D29: ANO | E29: ANO | F29: 23187 | G29: ANO | H29: ANO | I29: 19305 | J29: ANO | K29: ANO | L29: 6645 | M29: ANO | N29: ANO | O29: 4614 | P29: ANO | Q29: 97024 | R29: 776192
A30: Bilirubin konjugovaný | B30: ANO | C30: 12490 | D30: ANO | E30: ANO | F30: 4201 | G30: ANO | H30: ANO | I30: 3144 | J30: ANO | K30: ANO | L30: 2044 | M30: ANO | N30: ANO | O30: 1952 | P30: ANO | Q30: 23831 | R30: 190648
A31: Bilirubin novorozenecký | B31: ANO | C31: 1060 | D31: ANO | E31: ANO | F31: 690 | G31: ANO | Q31: 1750 | R31: 14000
A32: ALT | B32: ANO | C32: 52624 | D32: ANO | E32: ANO | F32: 35393 | G32: ANO | H32: ANO | I32: 20869 | J32: ANO | K32: ANO | L32: 8022 | M32: ANO | N32: ANO | O32: 7759 | P32: ANO | Q32: 124667 | R32: 997336
A33: AST | B33: ANO | C33: 49606 | D33: ANO | E33: ANO | F33: 33187 | G33: ANO | H33: ANO | I33: 20742 | J33: ANO | K33: ANO | L33: 7894 | M33: ANO | N33: ANO | O33: 7001 | P33: ANO | Q33: 118430 | R33: 947440
A34: Gamaglutamyltransferáza (GGT) | B34: ANO | C34: 34291 | D34: ANO | E34: ANO | F34: 16169 | G34: ANO | H34: ANO | I34: 13922 | J34: ANO | K34: ANO | L34: 4717 | M34: ANO | N34: ANO | O34: 4157 | P34: ANO | Q34: 73256 | R34: 586048
A35: Fosfatáza alkalická (ALP) | B35: ANO | C35: 25989 | D35: ANO | E35: ANO | F35: 13019 | G35: ANO | H35: ANO | I35: 11614 | J35: ANO | K35: ANO | L35: 3420 | M35: ANO | N35: ANO | O35: 2609 | P35: ANO | Q35: 56651 | R35: 453208
A36: Laktátdehydrogenáza (LD) v séru, likvoru a punktátu | B36: ANO | C36: 3348 | D36: ANO | E36: ANO | F36: 1119 | G36: ANO | H36: ANO | I36: 3171 | J36: ANO | N36: ANO | O36: 211 | P36: ANO | Q36: 7849 | R36: 62792
A37: Kreatinkináza (CK) | B37: ANO | C37: 8186 | D37: ANO | E37: ANO | F37: 5375 | G37: ANO | H37: ANO | I37: 6020 | J37: ANO | K37: ANO | L37: 1734 | M37: ANO | N37: ANO | O37: 486 | P37: ANO | Q37: 21801 | R37: 174408
A38: CK-MB mass | E38: ANO | F38: 126 | Q38: 126 | R38: 1008
A39: Myoglobin | B39: ANO | C39: 2707 | D39: ANO | E39: ANO | F39: 383 | G39: ANO | H39: ANO | I39: 405 | J39: ANO | Q39: 3495 | R39: 27960
A40: hs Troponin T nebo I | B40: ANO | C40: 4315 | D40: ANO | F40: 2402 | G40: ANO | H40: ANO | I40: 2055 | J40: ANO | N40: ANO | O40: 23 | Q40: 8795 | R40: 70360
A41: Natriuretické peptidy (NT-proBNP) | B41: ANO | C41: 1179 | D41: ANO | E41: ANO | F41: 1819 | G41: ANO | H41: ANO | I41: 2004 | J41: ANO | Q41: 5002 | R41: 40016
A42: Amyláza v séru a punktátu | B42: ANO | C42: 6563 | D42: ANO | E42: ANO | F42: 3495 | G42: ANO | H42: ANO | I42: 1528 | J42: ANO | K42: ANO | L42: 800 | M42: ANO | N42: ANO | O42: 335 | P42: ANO | Q42: 12721 | R42: 101768
A43: Amyláza v moči | B43: ANO | C43: 84 | D43: ANO | E43: ANO | F43: 120 | G43: ANO | I43: 318 | J43: ANO | K43: ANO | L43: 54 | M43: ANO | N43: ANO | O43: 45 | P43: ANO | Q43: 621 | R43: 4968
A44: Pankreatická amyláza v séru | E44: ANO | F44: 2835 | G44: ANO | Q44: 2835 | R44: 22680
A45: Pankreatická amyláza v moči | E45: ANO | F45: 52 | G45: ANO | Q45: 52 | R45: 416
A46: Lipáza v séru a punktátu | B46: ANO | C46: 4698 | D46: ANO | E46: ANO | F46: 3217 | G46: ANO | Q46: 7915 | R46: 63320
A47: Cholinesterasa | E47: ANO | F47: 215 | G47: ANO | Q47: 215 | R47: 1720
A48: Cholesterol celkový v séru a punktátu | B48: ANO | C48: 24561 | D48: ANO | E48: ANO | F48: 18748 | G48: ANO | H48: ANO | I48: 12910 | J48: ANO | K48: ANO | L48: 6494 | M48: ANO | N48: ANO | O48: 7059 | P48: ANO | Q48: 69772 | R48: 558176
A49: Cholesterol HDL | B49: ANO | C49: 19705 | D49: ANO | E49: ANO | F49: 15700 | H49: ANO | I49: 9824 | J49: ANO | K49: ANO | L49: 5844 | M49: ANO | N49: ANO | O49: 6575 | P49: ANO | Q49: 57648 | R49: 461184
A50: Cholesterol LDL | B50: ANO | C50: 20377 | D50: ANO | E50: ANO | F50: 16257 | H50: ANO | I50: 9840 | J50: ANO | K50: ANO | L50: 5849 | M50: ANO | N50: ANO | O50: 6462 | P50: ANO | Q50: 58785 | R50: 470280
A51: Triacylglyceroly v séru a punktátu | B51: ANO | C51: 22940 | D51: ANO | E51: ANO | F51: 16461 | G51: ANO | H51: ANO | I51: 12195 | J51: ANO | K51: ANO | L51: 6146 | M51: ANO | N51: ANO | O51: 6992 | P51: ANO | Q51: 64734 | R51: 517872
A52: Apolipoprotein A1 | B52: ANO | C52: 359 | E52: ANO | F52: 467 | Q52: 826 | R52: 6608
A53: Apolipoprotein B | B53: ANO | C53: 280 | E53: ANO | F53: 468 | Q53: 748 | R53: 5984
A54: Lipoprotein (a) | E54: ANO | F54: 73 | Q54: 73 | R54: 584
A55: Bílkovina celková v séru a punktátu | B55: ANO | C55: 19228 | D55: ANO | E55: ANO | F55: 6850 | G55: ANO | H55: ANO | I55: 5236 | J55: ANO | K55: ANO | L55: 2248 | M55: ANO | N55: ANO | O55: 370 | P55: ANO | Q55: 33932 | R55: 271456
A56: Bílkovina celková v moči | B56: ANO | C56: 1428 | D56: ANO | E56: ANO | F56: 588 | G56: ANO | H56: ANO | I56: 2393 | J56: ANO | K56: ANO | L56: 1413 | M56: ANO | N56: ANO | O56: 84 | P56: ANO | Q56: 5906 | R56: 47248
A57: Bílkovina celková v likvoru | B57: ANO | C57: 334 | D57: ANO | E57: ANO | F57: 112 | G57: ANO | Q57: 446 | R57: 3568
A58: Prealbumin | B58: ANO | C58: 526 | D58: ANO | E58: ANO | F58: 216 | G58: ANO | Q58: 742 | R58: 5936
A59: Albumin v séru a puktátu | B59: ANO | C59: 7661 | D59: ANO | E59: ANO | F59: 2340 | G59: ANO | H59: ANO | I59: 4525 | J59: ANO | K59: ANO | L59: 241 | M59: ANO | N59: ANO | O59: 338 | P59: ANO | Q59: 15105 | R59: 120840
A60: Albumin v moči | B60: ANO | C60: 2592 | E60: ANO | F60: 2306 | G60: ANO | H60: ANO | I60: 54 | J60: ANO | N60: ANO | O60: 3174 | P60: ANO | Q60: 8126 | R60: 65008
A61: Albumin v likvoru | C61: 7 | D61: ANO | E61: ANO | F61: 26 | G61: ANO | Q61: 33 | R61: 264
A62: Haptoglobin | B62: ANO | C62: 141 | Q62: 141 | R62: 1128
A63: Transferin | B63: ANO | C63: 2804 | E63: ANO | F63: 540 | H63: ANO | I63: 531 | J63: ANO | K63: ANO | L63: 325 | M63: ANO | N63: ANO | O63: 168 | P63: ANO | Q63: 4368 | R63: 34944
A64: Solubilní transferinový receptor | B64: ANO | C64: 318 | E64: ANO | F64: 421 | Q64: 739 | R64: 5912
A65: C3 složka komplementu | B65: ANO | C65: 82 | E65: ANO | F65: 32 | Q65: 114 | R65: 912
A66: C4 složka komplementu | B66: ANO | C66: 95 | E66: ANO | F66: 33 | Q66: 128 | R66: 1024
A67: Beta-2-mikroglobulin | B67: ANO | C67: 638 | E67: ANO | F67: 78 | Q67: 716 | R67: 5728
A68: IgG v séru | B68: ANO | C68: 2155 | E68: ANO | F68: 615 | N68: ANO | O68: 219 | P68: ANO | Q68: 2989 | R68: 23912
A69: IgA v séru | B69: ANO | C69: 1783 | E69: ANO | F69: 631 | N69: ANO | O69: 260 | P69: ANO | Q69: 2674 | R69: 21392
A70: IgM | B70: ANO | C70: 1766 | E70: ANO | F70: 612 | N70: ANO | O70: 220 | P70: ANO | Q70: =C70+F70+I70+L70+O70 -> 2598 | R70: =Q70*8 -> 20784
A71: IgE | B71: ANO | C71: 1420 | E71: ANO | F71: 271 | Q71: 1691 | R71: 13528
A72: C-reaktivní protein | B72: ANO | C72: 40700 | D72: ANO | E72: ANO | F72: 29874 | G72: ANO | H72: ANO | I72: 15589 | J72: ANO | K72: ANO | L72: 4776 | N72: ANO | O72: 3427 | P72: ANO | Q72: 94366 | R72: 754928
A73: CIK (cirkulující imunokomplexy) | E73: ANO | F73: 147 | Q73: 147 | R73: 1176
A74: Prokalcitonin | B74: ANO | C74: 2981 | D74: ANO | E74: ANO | F74: 279 | G74: ANO | Q74: 3260 | R74: 26080
A75: Interleukin 6 | B75: ANO | C75: 171 | D75: ANO | E75: ANO | F75: 9 | G75: ANO | Q75: 180 | R75: 1440
A76: Revmatoidní faktor v séru a punktátu | B76: ANO | C76: 1828 | E76: ANO | F76: 1083 | K76: ANO | L76: 299 | N76: ANO | O76: 217 | Q76: 3427 | R76: 27416
A77: Antistreptolyzin O (ASLO) v séru a punktátu | B77: ANO | C77: 1500 | E77: ANO | F77: 692 | K77: ANO | L77: 279 | N77: ANO | O77: 244 | Q77: 2715 | R77: 21720
A78: Glukóza v séru, plazmě, likvoru a punktátu | B78: ANO | C78: 123942 | D78: ANO | E78: ANO | F78: 40812 | G78: ANO | H78: ANO | I78: 30832 | J78: ANO | K78: ANO | L78: 12150 | N78: ANO | O78: 10951 | Q78: 218687 | R78: 1749496
A79: Glukóza v moči | B79: ANO | C79: 521 | D79: ANO | E79: ANO | F79: 388 | H79: ANO | I79: 2359 | J79: ANO | K79: ANO | L79: 1166 | N79: ANO | O79: 4539 | Q79: 8973 | R79: 71784
A80: Glukóza - hemolyzát | B80: ANO | C80: 1195 | D80: ANO | H80: ANO | I80: 19475 | J80: ANO | K80: ANO | L80: 1868 | N80: ANO | O80: 2542 | Q80: 25080 | R80: 200640
A81: Kyselina valproová | E81: ANO | F81: 84 | G81: ANO | Q81: 84 | R81: 672
A82: Carbamazepin | E82: ANO | F82: 23 | G82: ANO | Q82: 23 | R82: 184
A83: Digoxin | B83: ANO | C83: 498 | D83: ANO | E83: ANO | F83: 769 | G83: ANO | H83: ANO | I83: 342 | J83: ANO | Q83: 1609 | R83: 12872
A84: Teofylin | B84: ANO | C84: 138 | D84: ANO | E84: ANO | F84: 193 | G84: ANO | H84: ANO | I84: 175 | J84: ANO | Q84: 506 | R84: 4048
A85: Gentamycin | B85: ANO | C85: 107 | D85: ANO | E85: ANO | F85: 103 | G85: ANO | Q85: 210 | R85: 1680
A86: Vankomycin | B86: ANO | C86: 102 | D86: ANO | Q86: 102 | R86: 816
A87: Etanol | B87: ANO | C87: 522 | D87: ANO | E87: ANO | F87: 710 | G87: ANO | H87: ANO | I87: 171 | J87: ANO | Q87: 1403 | R87: 11224
A88: Tyreotropin (TSH) | B88: ANO | C88: 20817 | E88: ANO | F88: 12608 | G88: ANO | H88: ANO | I88: 14188 | J88: ANO | K88: ANO | L88: 6146 | M88: ANO | N88: ANO | O88: 4865 | P88: ANO | Q88: 58624 | R88: 468992
A89: Trijodtyronin celkový (TT3) | E89: ANO | F89: 129 | Q89: 129 | R89: 1032
A90: Trijodtyronin volný (FT3) | B90: ANO | C90: 678 | E90: ANO | F90: 1400 | H90: ANO | I90: 969 | J90: ANO | N90: ANO | O90: 1578 | P90: ANO | Q90: 4625 | R90: 37000
A91: Tyroxin volný (FT4) | B91: ANO | C91: 9939 | E91: ANO | F91: 3213 | H91: ANO | I91: 7347 | J91: ANO | K91: ANO | L91: 2327 | M91: ANO | N91: ANO | O91: 2130 | P91: ANO | Q91: 24956 | R91: 199648
A92: Thyreoglobulin | B92: ANO | C92: 206 | E92: ANO | F92: 71 | Q92: 277 | R92: 2216
A93: Autoprotilátky proti mikrosomálnímu antigenu (Anti-TPO) | B93: ANO | C93: 1695 | E93: ANO | F93: 232 | G93: ANO | Q93: 1927 | R93: 15416
A94: Autoprotilátky proti tyreoglobulinu (Anti-TG) | B94: ANO | C94: 1404 | E94: ANO | F94: 154 | Q94: 1558 | R94: 12464
A95: Choriogonadotropin (HCG) | B95: ANO | C95: 791 | D95: ANO | E95: ANO | F95: 477 | G95: ANO | N95: ANO | O95: 51 | P95: ANO | Q95: 1319 | R95: 10552
A96: Folitropin (FSH) | B96: ANO | C96: 536 | E96: ANO | F96: 105 | Q96: 641 | R96: 5128
A97: Lutropin (LH) | B97: ANO | C97: 454 | E97: ANO | F97: 116 | Q97: 570 | R97: 4560
A98: Prolaktin | B98: ANO | C98: 521 | E98: ANO | F98: 185 | Q98: 706 | R98: 5648
A99: Estradiol | B99: ANO | C99: 331 | E99: ANO | F99: 69 | G99: ANO | Q99: 400 | R99: 3200
A100: Progesteron | B100: ANO | C100: 220 | E100: ANO | F100: 159 | Q100: 379 | R100: 3032
A101: Testosteron celkový | B101: ANO | C101: 471 | E101: ANO | F101: 213 | Q101: 684 | R101: 5472
A102: Sex hormone binding globulin (SHBG) | B102: ANO | C102: 136 | E102: ANO | F102: 50 | Q102: 186 | R102: 1488
A103: Kortizol v séru | B103: ANO | C103: 545 | E103: ANO | F103: 138 | Q103: 683 | R103: 5464
A104: Kortizol v moči | B104: ANO | C104: 44 | E104: ANO | F104: 19 | Q104: 63 | R104: 504
A105: Spojovací peptid proinzulinu (C-peptid) | B105: ANO | C105: 677 | E105: ANO | F105: 219 | Q105: 896 | R105: 7168
A106: Prostatický specifický antigen (PSA) | B106: ANO | C106: 5731 | E106: ANO | F106: 4312 | H106: ANO | I106: 2503 | K106: ANO | L106: 1957 | N106: ANO | O106: 1356 | Q106: 15859 | R106: 126872
A107: Prostatický specifický antigen (PSA) - volný | B107: ANO | C107: 961 | E107: ANO | F107: 1574 | H107: ANO | I107: 628 | K107: ANO | L107: 818 | N107: ANO | O107: 290 | Q107: 4271 | R107: 34168
A108: Alfa-1-fetoprotein (AFP) | B108: ANO | C108: 697 | E108: ANO | F108: 429 | Q108: 1126 | R108: 9008
A109: Karcinoembryonalni antigen (CEA) v séru a punktátu | B109: ANO | C109: 3339 | E109: ANO | F109: 991 | Q109: 4330 | R109: 34640
A110: Carbohydrate antigen 15-3 | B110: ANO | C110: 1286 | E110: ANO | F110: 176 | Q110: 1462 | R110: 11696
A111: Carbohydrate antigen 19-9 | B111: ANO | C111: 2153 | E111: ANO | F111: 1029 | Q111: 3182 | R111: 25456
A112: Carbohydrate antigen 125 | B112: ANO | C112: 838 | E112: ANO | F112: 314 | Q112: 1152 | R112: 9216
A113: Feritin | B113: ANO | C113: 3831 | D113: ANO | E113: ANO | F113: 2144 | Q113: 5975 | R113: 47800
A114: Parathormon intaktní | B114: ANO | C114: 4272 | Q114: 4272 | R114: 34176
A115: 25-hydroxyvitamin D | B115: ANO | C115: 3093 | D115: ANO | E115: ANO | F115: 1579 | Q115: =C115+F115+I115+L115+O115 -> 4672 | R115: 37376
A116: Laktát v plazmě | B116: ANO | C116: 892 | D116: ANO | E116: ANO | F116: 1237 | G116: ANO | H116: ANO | I116: 232 | Q116: 2361 | R116: 18888
A117: Laktát v likvoru, puktátu | B117: ANO | C117: 337 | D117: ANO | E117: ANO | F117: 48 | G117: ANO | Q117: 385 | R117: 3080
A118: Amoniak | E118: ANO | F118: 78 | G118: ANO | Q118: 78 | R118: 624
A119: Hemoglobin ve stolici | E119: ANO | F119: 155 | Q119: 155 | R119: 1240
A120: Sérové indexy | B120: ANO | C120: 93354 | H120: ANO | I120: 32147 | K120: ANO | L120: 15893 | N120: ANO | O120: 15978 | Q120: 157372 | R120: 1258976
A121: Anti HAV IgG+IgM | E121: ANO | F121: 338 | Q121: =C121+F121+I121+L121+O121 -> 338 | R121: 2704
A122: Anti HAV IgM | E122: ANO | F122: 134 | Q122: 134 | R122: 1072
A123: HBsAg (Australský antigen) | E123: ANO | F123: 693 | Q123: 693 | R123: 5544
A124: Anti HBs | E124: ANO | F124: 505 | Q124: 505 | R124: 4040
A125: Anti HBc IgG +IgM | E125: ANO | F125: 442 | Q125: 442 | R125: 3536
A126: Anti HBc IgM | E126: ANO | F126: 38 | Q126: 38 | R126: 304
A127: Anti HBc IgM | E127: ANO | F127: 38 | Q127: 38 | R127: 304
A128: HCV (Ag/Ab) | E128: ANO | F128: 511 | Q128: 511 | R128: 4088
A129: HIV-1 (protilátky) | E129: ANO | F129: 445 | Q129: 445 | R129: 3560
A130: Ab/CMV IgG kvantit. | E130: ANO | F130: 215 | Q130: 215 | R130: 1720
A131: Ab/CMV IgM | E131: ANO | F131: 215 | Q131: 215 | R131: 1720
A132: Ab/Toxoplazma IgG kvant. | E132: ANO | F132: 86 | Q132: 86 | R132: 688
A133: Ab/Toxopl.IgM | E133: ANO | F133: 86 | Q133: 86 | R133: 688
A134: Ab/SARS-COV-2-IgG | E134: ANO | F134: 700 | G134: ANO | Q134: 700 | R134: =Q134*8 -> 5600
A136: Nepovinné reportované testy - část 2.
A137: Označení reportovaného testu | B137: Pracoviště Náchod | C137: Počet vzorků | D137: Statim | E137: Pracoviště Rychnov n/K | F137: Počet vzorků | G137: Statim | H137: CELKEM počet vzorků za všechny lokality/ 1 rok | I137: Celkem počet reportovaných testů za všechny lokality/ 8 let | J137: délka trvání vyšetření Statim | K137: možné velikosti balení/počet testů | L137: pipetovaný objem vzorku (ul) | M137: stabilita reagencie na palubě analyzátoru (dny) | N137: doporučený interval kalibrace, stabilita kalibrace (dny) | O137: reagencie připravené k použití (ANO/NE) | P137: kalibrační materál připravený k použití (ANO/NE) | Q137: kontrolní materiál připravený k použití (ANO/NE) | R137: reagencie označené RFID (ANO/NE) | S137: kalibrační materál označený RFID (ANO/NE) | T137: kontrolní materiál označený RFID (ANO/NE) | U137: V portfoliu ANO/NE
A138: ELF score (Enhanced Liver Fibrosis) | B138: ANO | C138: 129 | H138: =C138+F138 -> 129 | I138: =H138*8 -> 1032
A139: Eozinofilní kationový protein (ECP) | B139: ANO | C139: 372 | H139: 372 | I139: =H139*8 -> 2976
A140: Anti-CCP | E140: ANO | F140: 325 | H140: 325 | I140: 2600
A141: TSI (TSH receptor Stimulating Imunoglobulins) | B141: ANO | C141: 364 | H141: 364 | I141: 2912
A142: Preeklampsie | B142: ANO | C142: 148 | D142: ANO | H142: 148 | I142: 1184
A143: HE4 (Human Epididymal protein 4) | B143: ANO | C143: 105 | H143: 105 | I143: 840
A144: Carbohydrate antigen 125* | B144: ANO | C144: 105 | H144: 105 | I144: =H144*8 -> 840
A145: ROMA score | B145: ANO | C145: 102 | H145: 102 | I145: 816
A146: SCC antigen | E146: ANO | F146: 21 | H146: 21 | I146: 168
A147: Cytokeratin fragment 21-1 (CYFRA) v séru a punktátu | B147: ANO | C147: 363 | E147: ANO | F147: 17 | H147: 380 | I147: 3040
A148: Carbohydrate antigen 72-4 | B148: ANO | C148: 1013 | E148: ANO | F148: 139 | H148: 1152 | I148: 9216
A149: proPSA | E149: ANO | F149: 78 | H149: =F149 -> 78 | I149: =H149*8 -> 624
A150: NSE | B150: ANO | C150: 322 | E150: ANO | F150: 26 | H150: 348 | I150: 2784
A151: ALP-kostní (osteáza) | E151: ANO | F151: 23 | H151: 23 | I151: 184
A152: Osteokalcin | B152: ANO | C152: 2031 | E152: ANO | F152: 32 | H152: 2063 | I152: 16504
A153: Beta-CrossLaps | B153: ANO | C153: 1854 | H153: 1854 | I153: 14832
A154: Prokolagen typ I (Propeptid prokolagenu I) | B154: ANO | C154: 608 | H154: 608 | I154: 4864
A155: Adrenokortikotropin (ACTH) | B155: ANO | C155: 82 | E155: ANO | F155: 65 | H155: 147 | I155: 1176
A156: Ab/Treponema screen | E156: ANO | F156: 860 | H156: 860 | I156: 6880
A157: CMV avidita | E157: ANO | F157: 10 | H157: =C157+F157 -> 10 | I157: =H157*8 -> 80
A158: Specifické IgE proti: trávy I (směs) | B158: ANO | C158: 104 | H158: 104 | I158: 832
A159: Specifické IgE proti: směs roztoči | B159: ANO | C159: 237 | H159: 237 | I159: 1896
A160: Specifické IgE proti: směs plísně | B160: ANO | C160: 34 | H160: 34 | I160: 272
A161: Specifické IgE proti: směs stromy 9 | B161: ANO | C161: 108 | H161: 108 | I161: 864
A162: Specifické IgE proti: kočka - srst | B162: ANO | C162: 51 | H162: 51 | I162: 408
A163: Specifické IgE proti: pes - epitelie | B163: ANO | C163: 43 | H163: 43 | I163: 344
A164: Specifické IgE proti: vaječný bílek | B164: ANO | C164: 61 | H164: 61 | I164: 488
A165: Specifické IgE proti: mléko kravské | B165: ANO | C165: 137 | H165: 137 | I165: 1096
A166: Specifické IgE proti: mouka pšeničná | B166: ANO | C166: 86 | H166: 86 | I166: 688
A167: Specifické IgE proti: vaječný žloutek | B167: ANO | C167: 39 | H167: 39 | I167: 312
A168: Specifické IgE proti: gluten - lepek | B168: ANO | C168: 80 | H168: 80 | I168: 640
A169: Specifické IgE proti: včela medonosná | B169: ANO | C169: 30 | H169: 30 | I169: 240
A170: Specifické IgE proti: vosa obecná | B170: ANO | C170: 34 | H170: 34 | I170: 272
A171: Specifické IgE proti: Aspergillus fumigatus | B171: ANO | C171: 17 | H171: 17 | I171: 136
A172: Specifické IgE proti: Alternaria tenui | B172: ANO | C172: 34 | H172: 34 | I172: 272
A173: Specifické IgE proti: pyl pelyněk černobýl (Artemisia vulgaris) | B173: ANO | C173: 12 | H173: 12 | I173: 96
B176: Počet požadovaných metod - Pracoviště Náchod | E176: Počet požadovaných metod - Pracoviště Rychnov n/K | H176: Počet požadovaných metod - Pracoviště Broumov | K176: Počet požadovaných metod - Pracoviště Jaroměř | N176: Počet požadovaných metod - Pracoviště Opočno | P176: Délka trvání nejdelšího požadovaného vyšetření | S176: Možné velikosti balení/počet testů | U176: Počet metod s pipetovaným objemem větším než 50 ul | V176: Počet metod se stabilitou na palubě analyzátoru kratší než 14 dní | W176: Počet metod se stabilitou kalibrace kratší než 7 dní | X176: Počet metod, které vyžadují manuální přípravu (včetně ředění lyofilizovaného materiálu) | Z176: Počet metod, pro které je potřeba manuální příprava kalibračního materiálu (včetně ředění lyofilizovaného materiálu) | AB176: Počet metod, pro které je potřeba manuální příprava kontrolního materiálu (včetně ředění lyofilizovaného materiálu) | AD176: Počet diagnostik, které jsou označeny RFID
A177: Náchod | B177: =COUNTIF(B5:B134,"ANO") -> 103
A178: Rychnov nad Kněžnou | E178: =COUNTIF(E5:E134,"ANO") -> 122
A179: Broumov | H179: =COUNTIF(H5:H134,"ANO") -> 55
A180: Jaroměř | K180: =COUNTIF(K5:K134,"ANO") -> 45
A181: Opočno | N181: =COUNTIF(N5:N134,"ANO") -> 54
A184: Příslušenství, ostatní spotřební a provozní materiál
A185: Účastník doplní veškerý spotřební materiál pro potřebný pro provedení reportovaných testů dle požadavků zadavatele (tato tabulka bude tvořit neoddělitenou přílohu č. 3 Rámcové kupní smlouvy) | B185: Nabízený materiál (obchodní název) | C185: Analytický systém | D185: Dodavatel | E185: Velikost balení | F185: Katalogové / objednací číslo
A186: Další reagencie potřebné pro požadovaná vyšetření (specifické promývací roztoky, diluenty, pyridoxal-6-fosfát apod.)
A228: Kalibrační materiály
A271: Kontrolní materiály
A303: Příslušenství, ostatní spotřební a provozní materiál
